Cogmind - Beta 10.2 --- EXPLORER MODE // 2021.06.11 @ 13:07:17 // Winter2019/RPGLIKE Player: H_ Result: Self-destructed Performance ------------- Evolutions (1) 500 Regions Visited (5) 1000 Robots Destroyed (15) 75 Value Destroyed (305) 305 Prototype IDs (23) 460 Alien Tech Used (0) 0 Bonus (300) 300 TOTAL SCORE: 2640 Bonus ------- Aligned with FarCom 300 Cogmind --------- Core Integrity 440/600 Matter 270/300 Energy 150/150 System Corruption 0% Temperature Cool (0) Movement Core (150) Ox2 Location -9/Exiles Parts ------- > --- POWER (1) -------- Micro Nuclear Core > --- PROPULSION (1) --- (None) > --- UTILITY (2) ------ Improved Terrain Scanner > --- WEAPON (4) ------- XL Autogun Array > --- INVENTORY (1) ---- Mini Grenade Launcher Peak State ------------ > --- POWER ------------ Micro Nuclear Core > --- PROPULSION ------- (None) > --- UTILITY ---------- Improved Terrain Scanner > --- WEAPON ----------- XL Autogun Array > --- INVENTORY -------- Mini Grenade Launcher [Rating: 42] Favorites ----------- Power Light Ion Engine Engine Light Ion Engine Power Core Micro Nuclear Core Propulsion None Utility Improved Terrain Scanner Device Improved Terrain Scanner Weapon Mini Grenade Launcher Ballistic Gun Assault Rifle Launcher Mini Grenade Launcher Build | -11 -10 -10 -9 -9 -9 ------- Run | Scr Mat Min Mat Min Exi Slots Evolved 4 | 1 . . . . 3 Power . | . . . . . . Propulsion . | . . . . . . Utility 1 | 1 . . . . . Weapon 3 | . . . . . 3 Parts Attached 6 | 3 1 . . 1 1 Power 2 | 1 . . . 1 . Engine 1 | 1 . . . . . Core 1 | . . . . 1 . Reactor . | . . . . . . Propulsion . | . . . . . . Treads . | . . . . . . Leg . | . . . . . . Wheel . | . . . . . . Hover . | . . . . . . Flight . | . . . . . . Utility 1 | 1 . . . . . Device 1 | 1 . . . . . Storage . | . . . . . . Processor . | . . . . . . Hackware . | . . . . . . Protection . | . . . . . . Artifact . | . . . . . . Weapon 3 | 1 1 . . . 1 Energy Gun . | . . . . . . Energy Cannon . | . . . . . . Ballistic Gun 2 | 1 . . . . 1 Ballistic Cannon . | . . . . . . Launcher 1 | . 1 . . . . Special Weapon . | . . . . . . Impact Weapon . | . . . . . . Slashing Weapon . | . . . . . . Piercing Weapon . | . . . . . . Special Melee Weapon . | . . . . . . Unidentified Prototypes . | . . . . . . Parts Lost . | . . . . . . Power . | . . . . . . Propulsion . | . . . . . . Utility . | . . . . . . Weapon . | . . . . . . Highest Loss Streak . | . . . . . . Average Slot Usage (%) 60 | . 60 60 60 60 60 Engine 17 | . 20 20 20 11 . Core 2 | . . . . 8 20 Device 20 | . 20 20 20 20 20 Launcher 19 | . 17 20 20 20 20 Naked Turns . | . . . . . . Heaviest Build 22 | 6 6 5 5 8 22 Greatest Support 8 | 8 8 8 8 8 8 Greatest Overweight (x) 2 | . . . . . 2 Average Overweight (x) . | . . . . . . Largest Inventory Capacity 1 | 1 1 1 1 1 1 Average Capacity . | . 1 1 1 1 1 Most Carried 1 | 1 1 . . 1 1 Average Carried . | . . . . . . Final Capacity 1 | 1 1 1 1 1 1 Final Carried 1 | . . . . . 1 Class Distribution -------------------- 100% | Hacker-Mutant Dominant Class ---------------- Hacker-Mutant | -10/Materials Hacker-Mutant | -10/Mines Hacker-Mutant | -9/Materials Hacker-Mutant | -9/Mines Hacker-Mutant | -9/Exiles Resources | -11 -10 -10 -9 -9 -9 ----------- Run | Scr Mat Min Mat Min Exi Matter Collected 361 | 247 44 30 40 . . Remotely . | . . . . . . Salvage Created 405 | 107 298 . . . . Parts 31 | 6 16 2 . 7 . Haulers Intercepted . | . . . . . . Recyclers Shooed 1 | . 1 . . . . Parts Field Recycled . | . . . . . . Retrieved Matter . | . . . . . . Parts Self-Destructed . | . . . . . . Prevented . | . . . . . . Kills | -11 -10 -10 -9 -9 -9 ------- Run | Scr Mat Min Mat Min Exi Combat Hostiles Destroyed 8 | . 4 2 . 2 . AOE 8 | . 4 2 . 2 . Classes Destroyed 6 | 2 3 . . 1 . Tunneler 2 | 2 . . . . . Recycler 4 | 1 3 . . . . Watcher 1 | . 1 . . . . Swarmer 4 | . 2 2 . . . Grunt 3 | . 2 . . 1 . Brawler 1 | . . . . 1 . Best Kill Streak 5 | 3 5 2 . 2 . Combat Bots Only 2 | . 2 2 . 2 . Max Kills in Single Turn 3 | 1 3 1 . 2 . Gunslinging . | . . . . . . Exploded 2 | . 2 1 . 2 . Melee . | . . . . . . Uniques/NPCs Destroyed . | . . . . . . Combat | -11 -10 -10 -9 -9 -9 -------- Run | Scr Mat Min Mat Min Exi Damage Taken 188 | . 26 10 152 . . Core 160 | . 21 9 130 . . Absorbed by Shields . | . . . . . . Redirected to Core 76 | . 12 2 62 . . Core Remaining (%) 97 | 100 . 95 . . . Volleys Fired 24 | 15 4 4 . 1 . Largest 1 | 1 1 1 . 1 . Hottest 30 | 20 30 30 . 30 . Shots Fired 24 | 15 4 4 . 1 . Gun 15 | 15 . . . . . Cannon . | . . . . . . Launcher 9 | . 4 4 . 1 . Special . | . . . . . . Kinetic 15 | 15 . . . . . Thermal . | . . . . . . Explosive 9 | . 4 4 . 1 . Electromagnetic . | . . . . . . Robot Hit Streak 11 | 11 3 6 . 7 . Robot Miss Streak 1 | 1 . . . . . Penetration Max . | . . . . . . Secondary Targets . | . . . . . . Shots Hit Robots 18 | 13 1 3 . 1 . Core Hits 20 | 4 11 2 . 3 . Critical Hits . | . . . . . . Critical Kills . | . . . . . . Critical Parts Destroyed . | . . . . . . Melee Attacks . | . . . . . . Impact . | . . . . . . Slashing . | . . . . . . Piercing . | . . . . . . Sneak Attacks . | . . . . . . Combat Hostiles . | . . . . . . Follow-up Attacks . | . . . . . . Damage Inflicted 844 | 167 394 186 4 93 . Guns 167 | 167 . . . . . Cannons . | . . . . . . Explosions 661 | . 382 186 . 93 . Melee . | . . . . . . Ramming 16 | . 12 . 4 . . Kinetic 167 | 167 . . . . . Thermal . | . . . . . . Explosive 661 | . 382 186 . 93 . Electromagnetic . | . . . . . . Impact . | . . . . . . Slashing . | . . . . . . Piercing . | . . . . . . Highest Corruption . | . . . . . . Average Corruption . | . . . . . . Corruption Purged . | . . . . . . Overload Shots . | . . . . . . Overflow Damage 42 | . 16 26 . . . Projectiles . | . . . . . . Explosions 42 | . 16 26 . . . Melee . | . . . . . . Knockbacks . | . . . . . . Impact . | . . . . . . Kinetic . | . . . . . . Secondary . | . . . . . . Self-Inflicted Damage 8 | . 6 . 2 . . Shots . | . . . . . . Rammed 2 | . 1 . 1 . . Targets Rammed 2 | . 1 . 1 . . Kicked . | . . . . . . Crushed . | . . . . . . Highest Temperature 10 | . 10 . . . . Average Temperature 7 | . 7 . . . . Received Heat Transfer 81 | . 15 . 66 . . Siege Activations . | . . . . . . Robots Corrupted . | . . . . . . Combat Hostiles . | . . . . . . Parts Fried . | . . . . . . Impact Corruptions . | . . . . . . Robots Melted . | . . . . . . Combat Hostiles . | . . . . . . Parts Melted . | . . . . . . Heat Transferred . | . . . . . . Parts Sabotaged . | . . . . . . Parts Stolen . | . . . . . . Parts Stripped . | . . . . . . Power Chain Reactions . | . . . . . . Missiles Intercepted . | . . . . . . Alert | -11 -10 -10 -9 -9 -9 ------- Run | Scr Mat Min Mat Min Exi Peak Influence 333 | 15 333 149 204 120 . Initial 91 | . 7 91 40 56 . Average 89 | 4 127 98 79 66 . Maximum Alert Level 1 | . 1 . 1 . . Low Security (%) 88 | 100 58 100 94 100 . Level 1 11 | . 41 . 5 . . Level 2 . | . . . . . . Level 3 . | . . . . . . Level 4 . | . . . . . . Level 5 . | . . . . . . High Security . | . . . . . . Max Security . | . . . . . . Squads Dispatched 5 | . 2 . 2 1 . Investigation 3 | . 2 . . 1 . Extermination . | . . . . . . Reinforcement 2 | . . . 2 . . Assault . | . . . . . . Garrison . | . . . . . . Intercept . | . . . . . . Construction Impeded . | . . . . . . Haulers Reinforced . | . . . . . . Stealth | -11 -10 -10 -9 -9 -9 --------- Run | Scr Mat Min Mat Min Exi Distress Signals 4 | . 1 . 3 . . Communications Jammed . | . . . . . . Distress Signals . | . . . . . . Times Spotted 21 | . 8 2 9 2 . Peak Tracking Total 6 | . 5 2 6 2 . Tactical Retreats 5 | . 3 . 2 . . Traps | -11 -10 -10 -9 -9 -9 ------- Run | Scr Mat Min Mat Min Exi Traps Triggered 1 | . . . 1 . . Indirectly . | . . . . . . Trap Hack Attempts . | . . . . . . Triggered . | . . . . . . Disarmed . | . . . . . . Reprogrammed 1 | . 1 . . . . Reused . | . . . . . . Traps Extracted . | . . . . . . Installed . | . . . . . . Triggered . | . . . . . . Machines | -11 -10 -10 -9 -9 -9 ---------- Run | Scr Mat Min Mat Min Exi Machines Disabled 6 | . 1 2 . 3 . Max in Single Turn 3 | . 1 2 . 3 . Machines Sabotaged . | . . . . . . Garrisons Compromised . | . . . . . . Overloaded Fab Kills . | . . . . . . Fab Network Shutdowns . | . . . . . . Hacking | -11 -10 -10 -9 -9 -9 --------- Run | Scr Mat Min Mat Min Exi Machines Accessed 12 | . 8 . 2 1 1 Terminals 8 | . 6 . 2 . . Fabricators . | . . . . . . Repair Stations . | . . . . . . Recycling Units 2 | . 2 . . . . Scanalyzers . | . . . . . . Garrison Access . | . . . . . . Total Hacks 35 | . 26 . 7 1 1 Successful 29 | . 22 . 5 1 1 Failed 6 | . 4 . 2 . . Catastrophic . | . . . . . . Database Lockouts . | . . . . . . Manual 23 | . 19 . 3 . 1 Terminals 29 | . 22 . 7 . . Fabricators . | . . . . . . Repair Stations . | . . . . . . Recycling Units 4 | . 4 . . . . Scanalyzers . | . . . . . . Garrison Access . | . . . . . . Terminal Hacks 15 | . 10 . 3 1 1 Robot Analysis 1 | . 1 . . . . Open Door 1 | . . . . 1 . Branch Access Points 2 | . 1 . 1 . . Terminal Index 2 | . 1 . 1 . . Recycling Unit Index 1 | . 1 . . . . Locate Traps 2 | . 2 . . . . Reprogram Traps 1 | . 1 . . . . Zone Layout 4 | . 3 . 1 . . EX-Prototype ID Bank 1 | . . . . . 1 Fabricator Hacks . | . . . . . . Repair Station Hacks . | . . . . . . Recycling Unit Hacks 2 | . 2 . . . . Report Inventory 2 | . 2 . . . . Scanalyzer . | . . . . . . Garrison Access Hacks . | . . . . . . Unauthorized Hacks 12 | . 10 . 2 . . Terminals 10 | . 8 . 2 . . Track 2 | . 2 . . . . Botnet 7 | . 6 . 1 . . Operators 1 | . . . 1 . . Fabricators . | . . . . . . Repair Stations . | . . . . . . Recycling Units 2 | . 2 . . . . Tunnel 2 | . 2 . . . . Scanalyzers . | . . . . . . Garrison Access . | . . . . . . Data Cores Recovered . | . . . . . . Used . | . . . . . . Hacking Detections 7 | . 5 . 2 . . Full Trace Events . | . . . . . . Feedback Events . | . . . . . . Feedback Blocked . | . . . . . . Robot Schematics Acquired . | . . . . . . Robots Built . | . . . . . . Matter . | . . . . . . Time . | . . . . . . Total Robot Build Rating . | . . . . . . Part Schematics Acquired . | . . . . . . Parts Built . | . . . . . . Matter . | . . . . . . Time . | . . . . . . Total Part Build Rating . | . . . . . . Parts Repaired . | . . . . . . Time . | . . . . . . Parts Recycled . | . . . . . . Recycled Matter . | . . . . . . Retrieved Matter . | . . . . . . Retrieved Components . | . . . . . . Parts Scanalyzed . | . . . . . . Part Schematics Acquired . | . . . . . . Parts Damaged . | . . . . . . Bothacking | -11 -10 -10 -9 -9 -9 ------------ Run | Scr Mat Min Mat Min Exi Used RIF Installer . | . . . . . . Robots Hacked . | . . . . . . Non-combat . | . . . . . . Combat . | . . . . . . Robot Hacks Applied . | . . . . . . Relay Couplers Released . | . . . . . . Robots Rewired . | . . . . . . Allies Hacked . | . . . . . . Hacks Repelled . | . . . . . . Allies | -11 -10 -10 -9 -9 -9 -------- Run | Scr Mat Min Mat Min Exi Total Allies 3 | . . . . 3 . Largest Group 3 | . . . . 3 . Highest-Rated Group 40 | . . . . 40 . Highest-Rated Ally 16 | . . . . 16 . Total Orders . | . . . . . . Ally Attacks . | . . . . . . Total Damage . | . . . . . . Kills . | . . . . . . Allies Corrupted . | . . . . . . Allies Melted . | . . . . . . Intel | -11 -10 -10 -9 -9 -9 ------- Run | Scr Mat Min Mat Min Exi Robot Analysis Total 1 | . 1 . . . . Derelict Logs Recovered . | . . . . . . Drone Launches . | . . . . . . Drone Recoveries . | . . . . . . Exploration | -11 -10 -10 -9 -9 -9 ------------- Run | Scr Mat Min Mat Min Exi Turns Passed 766 | 59 168 231 172 72 64 Spaces Moved 1299 | 47 311 431 258 132 120 Core 1299 | 47 311 431 258 132 120 Treads . | . . . . . . Legs . | . . . . . . Wheels . | . . . . . . Hover . | . . . . . . Flight . | . . . . . . Fastest Speed 50 | 50 50 50 50 50 50 Average Speed 50 | 50 50 50 50 50 51 Slowest Speed 150 | 50 50 50 50 50 150 Overloaded Moves . | . . . . . . Propulsion Burnouts . | . . . . . . Robots Hopped . | . . . . . . Cave-ins Triggered . | . . . . . . Exploration Rate (%) 45 | 4 63 99 33 31 41 Regions Visited 5 Branch Regions 3 Pre-discovered Areas 2 | . 2 . . . . Known Exits Taken 5 | 1 1 1 1 1 . Unknown Exits Taken . | . . . . . . Scrap Searched 1 | . . 1 . . . Spaces Dug . | . . . . . . Terrain Destroyed 96 | . 33 32 . 31 . Melee . | . . . . . . Projectile . | . . . . . . AOE 96 | . 33 32 . 31 . Terrain Rammed . | . . . . . . Walls Destroyed . | . . . . . . Machines Disabled . | . . . . . . Actions | -11 -10 -10 -9 -9 -9 --------- Run | Scr Mat Min Mat Min Exi Total 1383 | 66 318 441 300 136 122 Wait 50 | . . 7 42 1 . Move 1294 | 46 310 430 257 131 120 Hop . | . . . . . . Pick Up 4 | 2 1 . . 1 . Fast Attach 2 | 1 . . . . 1 Attach 3 | 2 . . . 1 . Detach 1 | . . . . . 1 Swap 1 | . 1 . . . . Drop 2 | . 1 . . 1 . Fire 24 | 15 4 4 . 1 . Melee . | . . . . . . Ram 2 | . 1 . 1 . . Kick . | . . . . . . Crush . | . . . . . . Escape Stasis . | . . . . . . Rewire . | . . . . . . Trap . | . . . . . . Miscellaneous . | . . . . . . Route ------- -11/Scrapyard -10/Materials (discovered 5 exits: *Mat x3 / *Min x2) -10/Mines (discovered 2 exits: *Mat x2) -9/Materials (discovered 3 exits: Mat / *Min / Sto) -9/Mines -9/Exiles History --------- Turn | Location | Event 3 | -11/Scrapyard | Upgraded with Utility slot (x1) 9 | -11/Scrapyard | Identified exit to Materials 9 | -11/Scrapyard | Discovered exit to Materials (range 15) 60 | -11/Scrapyard | Entered Materials 118 | -10/Materials | Identified exit to Materials 118 | -10/Materials | Discovered exit to Materials (range 11) 164 | -10/Materials | Discovered exit to Materials (range 15) 177 | -10/Materials | Identified exit to Mines 192 | -10/Materials | Discovered exit to Materials (range 15) 228 | -10/Materials | Entered Mines 230 | -10/Mines | Reached level 2 310 | -10/Mines | Discovered exit to Materials (range 2) 316 | -10/Mines | Build established: Hacker-Mutant 392 | -10/Mines | Discovered exit to Materials (range 14) 459 | -10/Mines | Entered Materials 461 | -9/Materials | Reached level 3 546 | -9/Materials | Reached level 4 593 | -9/Materials | Identified exit to Mines 593 | -9/Materials | Identified exit to Storage 596 | -9/Materials | Identified exit to Materials 596 | -9/Materials | Discovered exit to Materials (range 16) 631 | -9/Materials | Entered Mines 664 | -9/Mines | Assisted by bots powering up and referring to "LRC-V3" 675 | -9/Mines | Met a Derelict shopkeep closing up shop 701 | -9/Mines | Deemed a non-threat by the Exiles lab entrance 701 | -9/Mines | Identified exit to Exiles 701 | -9/Mines | Discovered exit to Exiles (range 5) 703 | -9/Mines | Entered Exiles 716 | -9/Exiles | Met 8R-AWN 725 | -9/Exiles | Met EX-HEX 739 | -9/Exiles | Met EX-BIN 746 | -9/Exiles | Reached level 5 746 | -9/Exiles | Aligned with FarCom system 747 | -9/Exiles | Given EX-Vault access code 758 | -9/Exiles | Opened EX-Vault 762 | -9/Exiles | Upgraded with Weapon slot (x3) 763 | -9/Exiles | Found XL Autogun Array 767 | -9/Exiles | Self-destructed Last Messages --------------- Cloak of Protection Skeleton Box Trap Reconfigurator Supersonic Drone Bay Army-in-a-Box PSU Rigger Chronowheel AWS/Thermal Latent Energy Streamer Gui. Plasma Cannon Firepult YOLO Cannon AWS/Gauss XL Autogun Array AWS/Autocannon Field Lobotomy Kit Longsword +1 Deploy-a-Sentry 00762_ Upgraded: Weapon Slot (+3) 00763_ Acquired XL Autogun Array. Map ----- +----------------------------------------------------+ | | | | | | | | | | | | | | | | | | | | | | | | | | | | | | | | | | | | | | | | | | | | | | | ???????????#???#???##?#########?????#?#??????????? | | ??????????????##??????# ##???#??##?????????? | | ???????????#??????????# @ #?????#????????????? | | ????????????#??#?#??#?# ! ! #????##????????????? | | ?????????????#####?#??# X#??#??##???????????? | | ????????#???#???#?#???## ##????####??????????? | | ?????????#???#?##????##X #####???##??????????? | | ???????????####???#?#?## #?#?###??##??#??????? | | ?????????#???#?#?#?????# #??##?????##????????? | | ??????????????##????#### #???###??###????????? | | ??????????????#?#####?## ##?"""""?#?#????????? | | ?????????????#?#??#?#### ## """##????#?????? | | ??????????#?????#??#?#?# X""??#?#???????? | | ??????????##???#?#####?# ## """#?#?????????? | | ?????????????????####### #??"""""?##?#???????? | | ??????????##?#???"""""?# ##?####???#??#??????? | | ?????????????#???""" ## ##?##???????????????? | | ???????????????#""X" #????#???##?#?????#?? | | ???????????????#" #??##??#??#?????????? | | ?????????????###" ## ####?#?###??????????? | | ???????????????#""""""?# #?###########??#????# | | ?????????????????"####?# ###"""""""#???#?#???? | | ?????????????? ?????### ###"""""""#?????#???? | | ????????????????????##?# #?#"""""""###??#???#? | | ?????????????#"??????### ###"" """"##????????? | | ???????????????""????##" """"#?##??????? | | ??????????????##????#?#" """#?????????? | +----------------------------------------------------+ Best States ------------- Heat Dissipation 25 Energy Generation 15 Energy Capacity 150 Matter Stores 300 Matter Capacity 300 Sight Range 16 Terrain Scan Range 16 Terrain Scan Density 310 Resistance: KI 35 Resistance: TH 35 Resistance: EX 35 Resistance: EM 35 Resistance: I 35 Resistance: S 35 Resistance: P 35 Evasion (%) 50 Offensive Hacking 25 Defensive Hacking 5 Item Schematics ----------------- None Robot Schematics ------------------ None Fabricated ------------ Nothing Alien Tech Used ----------------- None Achievements -------------- None Challenges ------------ None RPGLIKE | -11 -10 -10 -9 -9 -9 --------- Run | Scr Mat Min Mat Min Exi Levels Raised 4 | . . 1 2 . 1 XP Earned 12087 | 6000 1175 750 3052 760 350 XP Spent 3920 | 900 . . 620 . 2400 Upgrades 11 | 4 . . 4 . 3 Utility Slot 1 | 1 . . . . . Weapon Slot 3 | . . . . . 3 Mass Support 1 | 1 . . . . . Inventory Capacity 1 | 1 . . . . . Terrain Scan Density 3 | 1 . . 2 . . Hack Attack % 1 | . . . 1 . . Hack Defense % 1 | . . . 1 . . Protomatter Created 87 | . . 3 . 84 . Protomatter Decayed . | . . . . . . Game ------ Seed TacticalReactionGreatsword Manual? 0 Play Time 00:21:45 Cumulative 146.2 hours Start 2021.06.11 @ 12:34:20 End 2021.06.11 @ 13:07:17 Sessions 1 Manual Loads 0 Difficulty Explorer Special Mode Winter2019/RPGLIKE Game No. 32 Rogue 12 Adventurer 0 Explorer 20 Win Type - Total 2 Types 0/0/2/0/0/0/0/0/0 Lore% 69 Gallery% 76 Achievement% 66 Wizard Run 0 Options --------- ASCII 0 Keyboard 0 Movement Mouse Keybinds 0 Fullscreen 2 Font 24/Proggy Map View 76x50 Tactical HUD 1 Map Filters NONE Filters NONE Steam 1 RUN: d72477f5-c8a9-4d1e-aba3-0528fa5c901e